Cogmind - Beta 16.1 @@@ ROGUE MODE // 2026.03.05 @ 21:14:13 Player: Sen Result: Destroyed by X5-UZN(R) with Subdweller Shrapnel Launcher Performance ------------- Evolutions (0) 0 Regions Visited (2) 400 Robots Destroyed (27) 135 Value Destroyed (639) 639 Prototype IDs (6) 120 Alien Tech Used (0) 0 Bonus (0) 0 TOTAL SCORE: 1294 Bonus ------- None Cogmind --------- Core Integrity 0/250 Matter 243/300 Energy 55/100 System Corruption 0% Temperature Cool (0) Movement Core (500) Ox9 Location -10/Subcaves Parts ------- > --- POWER (1) -------- (None) > --- PROPULSION (2) --- (None) > --- UTILITY (2) ------ Large Storage Unit Signal Interpreter > --- WEAPON (2) ------- Subdweller Beam Cannon > --- INVENTORY (15) --- Ion Engine Light Ion Engine Subdweller Power Source Subdweller Power Source Wheel Wheel Subdweller Monowheel Heat Sink Subdweller Optics Power Shielding Backup Plating I Hammer Peak State ------------ > --- POWER ------------ Light Nuclear Core > --- PROPULSION ------- Aluminum Leg Aluminum Leg > --- UTILITY ---------- Large Storage Unit Signal Interpreter > --- WEAPON ----------- Particle Gun Assault Rifle > --- INVENTORY -------- Ion Engine Ion Engine Light Ion Engine Light Treads Aluminum Leg Wheel Heat Sink Power Shielding Assault Rifle Light Assault Rifle Grenade Launcher Hammer [Rating: 11] Favorites ----------- Power Light Nuclear Core Engine Ion Engine Power Core Light Nuclear Core Propulsion Aluminum Leg Treads Light Treads Leg Aluminum Leg Utility Signal Interpreter Device Heat Sink Storage Large Storage Unit Processor Signal Interpreter Weapon Assault Rifle Energy Gun Particle Gun Energy Cannon Subdweller Beam Cannon Ballistic Gun Assault Rifle Launcher Grenade Launcher Impact Weapon Hammer Build | -11 -10 -10 ------- Run | Yrd Mat Sub Slots Evolved . | . . . Power . | . . . Propulsion . | . . . Utility . | . . . Weapon . | . . . Parts Attached 24 | 7 12 5 Power 5 | 1 4 . Engine 3 | 1 2 . Core 2 | . 2 . Reactor . | . . . Propulsion 6 | 2 2 2 Treads 1 | . . 1 Leg 5 | 2 2 1 Wheel . | . . . Hover . | . . . Flight . | . . . Utility 4 | 1 3 . Device 1 | . 1 . Storage 2 | 1 1 . Processor 1 | . 1 . Hackware . | . . . Protection . | . . . Artifact . | . . . Weapon 9 | 3 3 3 Energy Gun 3 | 2 1 . Energy Cannon 1 | . . 1 Ballistic Gun 3 | 1 1 1 Ballistic Cannon . | . . . Launcher 1 | . . 1 Special Weapon . | . . . Impact Weapon 1 | . 1 . Slashing Weapon . | . . . Piercing Weapon . | . . . Special Melee Weapon . | . . . Unidentified Prototypes . | . . . Parts Lost 10 | . . 10 Power 1 | . . 1 Propulsion 4 | . . 4 Utility . | . . . Weapon 5 | . . 5 Highest Loss Streak 4 | . . 4 To Critical Strikes . | . . . Average Backups 10 | 1 8 13 Power 2 | . 2 2 Propulsion 2 | . 2 3 Utility 2 | . 1 3 Weapon 3 | . 2 4 Tool/Special . | . . . Unused Backups 12 | . 3 9 Power 4 | . 1 3 Propulsion 5 | . 2 3 Utility 3 | . . 3 Weapon . | . . . Tool/Special . | . . . Average Slot Usage (%) 96 | . 97 95 Engine 4 | . 10 . Core 9 | . 3 13 Treads 1 | . . 3 Leg 24 | . 28 21 Storage 14 | . 14 14 Processor 12 | . 10 14 Energy Gun 5 | . 10 . Ballistic Gun 17 | . 10 24 Impact Weapon 3 | . 6 . Peak Build Rating 11 | 6 11 11 Average Rating 8 | 4 8 9 On Entrance 5 | . 6 10 Avg Prop Armor Cover (%) 7 | . . 7 Naked Turns . | . . . Heaviest Build 30 | 14 30 29 Greatest Support 20 | 20 20 20 Greatest Overweight (x) 2 | 1 1 2 Average Overweight (x) . | . . 1 Largest Inventory Capacity 15 | 8 15 15 Average Capacity 12 | 6 10 15 Most Carried 15 | 2 13 15 Average Carried 10 | 1 8 13 Final Capacity 15 | 8 15 15 Final Carried 13 | 2 13 12 Class Distribution -------------------- 100% | Mutant Dominant Class ---------------- Mutant | -10/Materials Mutant | -10/Subcaves Resources | -11 -10 -10 ----------- Run | Yrd Mat Sub Matter Collected 780 | 224 365 191 Remotely . | . . . Salvage Created 791 | . 505 286 Parts 48 | . 30 18 Haulers Intercepted 1 | . 1 . Recyclers Shooed . | . . . Parts Field Recycled . | . . . Retrieved Matter . | . . . Parts Self-Destructed 13 | . . 13 Prevented . | . . . Parts Restored . | . . . Kills | -11 -10 -10 ------- Run | Yrd Mat Sub Combat Hostiles Destroyed 23 | . 14 9 Melee 1 | . 1 . Guns 17 | . 12 5 Cannons 1 | . . 1 AOE 3 | . . 3 Classes Destroyed 6 | . 5 1 Builder 1 | . 1 . Hauler 1 | . 1 . Watcher 2 | . 2 . Swarmer 11 | . 8 3 Grunt 6 | . 6 . Subdweller 6 | . . 6 Best Kill Streak 4 | . 4 3 Combat Bots Only 3 | . 3 3 Max Kills in Single Turn 2 | . 2 2 Gunslinging 1 | . 1 1 Exploded 1 | . . 1 Melee 1 | . 1 . Uniques/NPCs Destroyed . | . . . Combat | -11 -10 -10 -------- Run | Yrd Mat Sub Hostile Shots Fired 116 | . 71 45 Missed 28 | . 12 16 Hits 88 | . 59 29 Projectile 88 | . 59 29 AOE 7 | . . 7 Critical Strikes 1 | . . 1 Damage Taken 1560 | . 659 901 Core 260 | . 114 146 Absorbed by Shields . | . . . Core Remaining (%) 100 | 100 . . Volleys Fired 66 | . 33 33 Largest 2 | . 2 2 Hottest 100 | . 85 100 Shots Fired 120 | . 64 56 Gun 105 | . 64 41 Cannon 4 | . . 4 Launcher 11 | . . 11 Special . | . . . Kinetic 73 | . 33 40 Thermal 36 | . 31 5 Explosive 11 | . . 11 Electromagnetic . | . . . Robot Hit Streak 8 | . 8 8 Robot Miss Streak 4 | . 3 4 Penetration Max . | . . . Secondary Targets 4 | . 3 1 Max Gunslinging Chain 1 | . 1 1 Shots Hit Robots 75 | . 46 29 Core Hits 40 | . 21 19 Critical Kills 1 | . 1 . Critical Parts Destroyed 2 | . 2 . Critical Strikes 6 | . 6 . Burn 3 | . 3 . Destroy 1 | . 1 . Smash 2 | . 2 . Melee Attacks 13 | . 13 . Impact 13 | . 13 . Slashing . | . . . Piercing . | . . . Sneak Attacks 2 | . 2 . Combat Hostiles . | . . . Follow-up Attacks . | . . . Damage Inflicted 1641 | . 754 887 Guns 753 | . 542 211 Cannons 80 | . . 80 Explosions 596 | . . 596 Melee 212 | . 212 . Ramming . | . . . Kinetic 457 | . 262 195 Thermal 376 | . 280 96 Explosive 596 | . . 596 Electromagnetic . | . . . Impact 212 | . 212 . Slashing . | . . . Piercing . | . . . Highest Corruption . | . . . Average Corruption . | . . . Corruption Purged . | . . . Corruption Blocked . | . . . Overload Shots . | . . . Overflow Damage 103 | . 103 . Projectiles . | . . . Explosions . | . . . Melee 103 | . 103 . Knockbacks 2 | . 2 . Impact 2 | . 2 . Kinetic . | . . . Secondary . | . . . Self-Inflicted Damage . | . . . Shots . | . . . Rammed . | . . . Targets Rammed . | . . . Kicked . | . . . Crushed . | . . . Highest Temperature 246 | . 246 24 Average Temperature 69 | . 72 14 Received Heat Transfer 318 | . 267 51 Effects 3 | . 3 . Interference 3 | . 3 . Siege Activations . | . . . Martial Activations . | . . . Shielding Activations . | . . . Robots Disrupted . | . . . Combat Hostiles . | . . . Robots Corrupted 2 | . 2 . Combat Hostiles 1 | . 1 . Parts Fried 3 | . 3 . Impact Corruptions 3 | . 3 . Robots Melted . | . . . Combat Hostiles . | . . . Parts Melted 1 | . 1 . Heat Transferred 1110 | . 962 148 Parts Sabotaged . | . . . Parts Stolen . | . . . Parts Stripped . | . . . Power Chain Reactions . | . . . Alert | -11 -10 -10 ------- Run | Yrd Mat Sub Maximum Alert Level . | . . . Low Security (%) 100 | 100 100 . Level 1 . | . . . Level 2 . | . . . Level 3 . | . . . Level 4 . | . . . Level 5 . | . . . High Security . | . . . Max Security . | . . . Peak Influence 103 | . 103 . Initial . | . . . Average 45 | . 48 . Influence Increases 634 | . 499 135 Destroy 0b10 Robot/C 340 | . 280 60 Destroy 0b10 Robot/NC 20 | . 20 . Destroy Leader 76 | . 76 . Successful Hack 74 | . 74 . Disable Machine 30 | . 30 . Destroy Structure 4 | . 4 . Lose Combat Pursuer 90 | . 15 75 Influence Decreases 634 | . 491 143 Entered New Map 4 | . . 4 Time Decay 620 | . 481 139 Lost Ally 10 | . 10 . Squads Dispatched 4 | . 4 . Investigation 4 | . 4 . Extermination . | . . . Reinforcement . | . . . Assault . | . . . Garrison . | . . . Intercept . | . . . Searches Triggered . | . . . Construction Impeded . | . . . Haulers Reinforced . | . . . Active Scanning Responses . | . . . Cargo Convoy Interrupts . | . . . Stealth | -11 -10 -10 --------- Run | Yrd Mat Sub Distress Signals . | . . . Communications Jammed . | . . . Distress Signals . | . . . Times Spotted 37 | . 25 12 Peak Tracking Total 6 | . 4 6 Tactical Retreats 3 | . 1 2 Traps | -11 -10 -10 ------- Run | Yrd Mat Sub Traps Triggered 5 | . 3 2 Indirectly . | . . . Trap Hack Attempts . | . . . Triggered . | . . . Disarmed . | . . . Reprogrammed . | . . . Reused . | . . . Traps Extracted . | . . . Installed . | . . . Triggered . | . . . Machines | -11 -10 -10 ---------- Run | Yrd Mat Sub Machines Disabled 2 | . 2 . Max in Single Turn 1 | . 1 . Machines Repaired . | . . . Machines Dismantled . | . . . Machines Sabotaged . | . . . Overloaded Fab Kills . | . . . Hacking | -11 -10 -10 --------- Run | Yrd Mat Sub Machines Accessed 9 | . 9 . Terminals 8 | . 8 . Fabricators . | . . . Repair Stations . | . . . Recycling Units 1 | . 1 . Scanalyzers . | . . . Garrison Access . | . . . Total Hacks 25 | . 25 . Successful 13 | . 13 . Failed 12 | . 12 . Catastrophic 2 | . 2 . Database Lockouts . | . . . Manual 13 | . 13 . Terminals 24 | . 24 . Fabricators . | . . . Repair Stations . | . . . Recycling Units 1 | . 1 . Scanalyzers . | . . . Garrison Access . | . . . Terminal Hacks 9 | . 9 . Prototype ID Bank 4 | . 4 . Level Access Points 1 | . 1 . Branch Access Points 1 | . 1 . Emergency Access Points 1 | . 1 . Locate Traps 2 | . 2 . Fabricator Hacks . | . . . Repair Station Hacks . | . . . Recycling Unit Hacks 1 | . 1 . Retrieve Components 1 | . 1 . Scanalyzer . | . . . Garrison Access Hacks . | . . . Unauthorized Hacks 3 | . 3 . Terminals 3 | . 3 . Assimilate 2 | . 2 . Operators 1 | . 1 . Fabricators . | . . . Repair Stations . | . . . Recycling Units . | . . . Scanalyzers . | . . . Garrison Access . | . . . Data Cores Recovered . | . . . Used . | . . . Hacking Detections 8 | . 8 . Full Trace Events 2 | . 2 . Feedback Events . | . . . Feedback Blocked . | . . . Robot Schematics Acquired . | . . . Robots Built . | . . . Authchips . | . . . Time . | . . . Total Robot Build Rating . | . . . Part Schematics Acquired . | . . . Parts Built . | . . . Authchips . | . . . Time . | . . . Total Part Build Rating . | . . . Part Studies Acquired . | . . . Parts Repaired . | . . . Time . | . . . Parts Recycled . | . . . Recycled Matter . | . . . Retrieved Matter . | . . . Retrieved Components 6 | . 6 . Parts Scanalyzed . | . . . Part Schematics Acquired . | . . . Parts Damaged . | . . . Bothacking | -11 -10 -10 ------------ Run | Yrd Mat Sub Used RIF Installer . | . . . Robots Hacked . | . . . Non-combat . | . . . Combat . | . . . Robot Hacks Applied . | . . . Relay Couplers Released . | . . . Fabnet Peak Effective % . | . . . Robots Rewired . | . . . Allies Hacked . | . . . Hacks Repelled . | . . . Allies | -11 -10 -10 -------- Run | Yrd Mat Sub Total Allies 1 | . 1 . Largest Group 1 | . 1 . Highest-Rated Group 10 | . 10 . Highest-Rated Ally 10 | . 10 . Total Orders . | . . . Ally Attacks . | . . . Total Damage . | . . . Kills . | . . . Allies Corrupted . | . . . Allies Melted . | . . . Intel | -11 -10 -10 ------- Run | Yrd Mat Sub Active Infowar (turns) . | . . . Robot Analysis Total . | . . . Derelict Logs Recovered . | . . . Drone Launches . | . . . Drone Recoveries . | . . . Exploration | -11 -10 -10 ------------- Run | Yrd Mat Sub Turns Passed 2930 | 65 1383 1482 Spaces Moved 1524 | 51 833 640 Core 14 | 14 . . Treads 120 | . . 120 Legs 1390 | 37 833 520 Wheels . | . . . Hover . | . . . Flight . | . . . Fastest Speed 50 | 50 120 190 Average Speed 165 | 103 142 199 Slowest Speed 260 | 120 190 260 Overloaded Moves . | . . . Propulsion Burnouts . | . . . Robots Hopped . | . . . Potential Cave-ins . | . . . Cave-ins Triggered . | . . . Exploration Rate (%) 48 | 3 99 43 Regions Visited 2 Branch Regions 1 Pre-discovered Areas . | . . . Known Exits Taken 1 | . 1 . Unknown Exits Taken 1 | 1 . . Scrap Searched . | . . . Spaces Dug 4 | . 4 . Terrain Destroyed 44 | . 4 40 Melee 4 | . 4 . Projectile . | . . . AOE 40 | . . 40 Terrain Rammed . | . . . Walls Destroyed . | . . . Machines Disabled . | . . . Actions | -11 -10 -10 --------- Run | Yrd Mat Sub Total 1787 | 59 940 788 Wait 116 | . 16 100 Move 1522 | 50 832 640 Hop . | . . . Pick Up 21 | 2 14 5 Fast Attach 7 | 6 1 . Attach 8 | . 2 6 Detach 1 | . 1 . Swap 24 | 1 19 4 Drop 9 | . 9 . Fire 66 | . 33 33 Melee 13 | . 13 . Ram . | . . . Kick . | . . . Crush . | . . . Escape Stasis . | . . . Rewire . | . . . Trap . | . . . Miscellaneous . | . . . Route ------- -11/Scrapyard -10/Materials (discovered 6 exits: *Mat x3 / *Min x2 / *Sub) -10/Subcaves (discovered 1 exit: [*Mat]) History --------- Turn | Location | Event 20 | -11/Scrapyard | Discovered new exit (range 15) 66 | -11/Scrapyard | Entered Materials 302 | -10/Materials | Build established: Mutant 390 | -10/Materials | Discovered new exit (range 16) 445 | -10/Materials | Identified exit to Materials 453 | -10/Materials | Discovered new exit (range 15) 474 | -10/Materials | Identified exit to Mines 592 | -10/Materials | Discovered exit to Mines (range 16) 673 | -10/Materials | Discovered exit to Materials (range 15) 766 | -10/Materials | Derelicts attacked the area 1343 | -10/Materials | Discovered new exit (range 7) 1354 | -10/Materials | Identified exit to Subcaves 1449 | -10/Materials | Entered Subcaves 1450 | -10/Subcaves | Approached by a straggling Scientist 1628 | -10/Subcaves | Core integrity fell below 50% 2686 | -10/Subcaves | Shifting Twisted Machinery released Sub. Power Source 2886 | -10/Subcaves | Shifting Twisted Machinery released Piercing Trap 2916 | -10/Subcaves | Discovered new exit (range 13) 2921 | -10/Subcaves | Core integrity fell below 20% 2931 | -10/Subcaves | Destroyed by X5-UZN(R) with Subdweller Shrapnel Launcher Last Messages --------------- 02750_ Grenade Launcher destroyed. 02766_ Particle Gun destroyed. 02771_ YA-IMR(R) destroyed. 02782_ Acquired Sub. Optics. 02783_ Acquired 35 matter. 02815_ Acquired Sub. Power Source. 02832_ Subatomizers dissect the Sub. Power Source. Piercing Trap falls loose from the Twisted Machinery. 02909_ Subatomizers dissect the Disposable Heat Sink. 02916_ EXIT=FOUND 02919_ 6E-M9E(R) destroyed. 02920_ Lgt. Assault Rifle destroyed. 02921_ Subatomizers dissect the Disposable Heat Sink. 02922_ Lgt. Treads destroyed. 02927_ Lgt. Nuclear Core destroyed. 02927_ Assault Rifle destroyed. Map ----- +----------------------------------------------------+ | ?????????????????????????????????????????????????? | | ?????????????????????????????????????????????????? | | ?????????????????????????????????????????????????? | | ?????????????????????????????????????????????????? | | ?????????????????????????????????????????????????? | | ?????????????????????????????????????????????????? | | ?????????????????????????????????????????????????? | | ?????????????????????????????????????????????????? | | ?????????????????????????????????????????????????? | | ?????????????????????????????????????????????????? | | ?????????????????????????????????????????????????? | | ????????????????????????????? ???????????????????? | | ????????????????????????????? "????????????????? | | ????????????????????????????? """??????????????? | | ???????????????????????????? ?????????????? | | ???????????????????????????? ??????????????? | | ???????????????#???????????? < ???????????????? | | ???????????????# ??????????# ????????????????? | | ???????????????# ??????### ?????????????????? | | ??????????????## ?###?# #?????????????????? | | ??????????????# ## ## #?????????????????? | | ??????????????# ##### % ?????????? | | ?????????????## ;; ;; #?????????? | | ?????????????# %;;; R #?????????? | | ??????????????# % #?# #??? | | ????????????????# @ ???? | | ???????????????# # #??? ????? | | ????????????????????# ; #?? #????? | | ????????????????????# ## #?? #?????? | | ????????????????????# #??? ##?? #?????? | | ????????????????? ??### ##????????# #?????? | | ????????????????#""##" " ######??## #??????? | | ???????????????? """" "* ## #?## #??????? | | ???????????????? """" " ## ### #????????? | | ???????????????? "#"" " #?????????? | | ????????????????#& ### "" ! #?????????? | | ???????????????# "#??# ## * #?????????? | | ?????????????????????# ## " ##?###????? | | ?????????????????????## ###" ## " # ## #????? | | ??????????????????????###?##### "### ##???? | | ????????????????????????????## """### #???? | | ????????????????????????????# """"###### ##???? | | ???????????????????????????## """"""#??# #????? | | ???????????????????????????# ""#??## ###???? | | ???????????????????????????## "#?## ###?? | | ????????????????????????????### ##?# #?? | | ??????????????????????????????### ### #?? | | ????????????????????????????##### ## ##?? | | ????????????????????????????#""# # #??? | | ????????????????????????????# # ## # ##?? | +----------------------------------------------------+ Best States ------------- Heat Dissipation 35 Energy Generation 14 Energy Capacity 250 Matter Stores 300 Matter Capacity 300 Sight Range 16 Terrain Scan Density 10 Evasion (%) 55 Recoil Reduction 1 Item Schematics ----------------- None Robot Schematics ------------------ None Fabricated ------------ Nothing Repaired ---------- Nothing Studied --------- None Alien Tech Used ----------------- None Achievements -------------- None Challenges ------------ None Game ------ Seed SniperZipRay Manual? 0 Play Time 00:23:50 Cumulative 136.7 hours Start 2026.03.05 @ 20:24:54 End 2026.03.05 @ 21:14:13 Sessions 3 Manual Loads 0 Difficulty Rogue Special Mode None Game No. 113 Rogue 113 Adventurer 0 Explorer 0 Win Type - Total 0 Types 0/0/0/0/0/0/0/0/0/0 Lore% 53 Gallery% 47 Achievement% 36 Wizard Run 0 Options --------- Layout 1 ASCII 1 Keyboard 1 Movement Numpad Keybinds 0 Fullscreen 1 Font 24/Smallcaps Map View 50x35 Zoom Use 0% Tactical HUD 1 Map Filters NONE Filters NONE Steam 1 RUN: c592cd06-cf6e-495b-a534-26017f5414d7